bitfinex-derivatives/quotes_ETHF0:USTF0_20250130
["timestamp","ask_amount","ask_price","bid_price","bid_amount"]
[1738204441296,0.63466,3151.5,3151.1,1.13662]
[1738204441704,0.5345,3151.7,3151.2,0.63469]
[1738204442000,0.5345,3151.7,3151.1,0.5019]
[1738204442213,0.63469,3151.3,3151.1,0.5019]
[1738204442501,0.63466,3151.5,3151.2,0.6347]
[1738204443300,0.63468,3151.4,3151.1,1.13662]
[1738204444599,0.6347,3151.3,3151.1,0.5019]
[1738204444908,0.63471,3151.2,3151.1,0.5019]
[1738204445209,1.14361,3151.2,3151.1,0.5019]
[1738204446704,1.14361,3151.2,3151.0,3.2078]
[1738204446705,0.63473,3151.1,3151.0,3.2078]
[1738204446904,4.5388511,3151.1,3151.0,3.2078]
[1738204447102,3.9041211,3151.1,3150.7,0.00476395]
[1738204447305,0.63479,3150.8,3150.7,0.00476395]
[1738204448313,0.63479,3150.8,3150.7,0.00368148]
[1738204450911,0.53618247,3151.1,3150.7,0.63848148]
[1738204451105,0.63476,3151.0,3150.8,1.0631]
[1738204451305,0.53618247,3151.1,3150.8,1.69788]
[1738204451501,0.00108247,3151.1,3150.8,1.69788]
[1738204451713,0.63582247,3151.1,3150.8,1.0631]
[1738204452718,0.63582247,3151.1,3150.8,1.69788]
[1738204452919,0.00108247,3151.1,3150.9,3.2078]
[1738204453420,0.00108247,3151.1,3151.0,1.15435]
[1738204454918,1.0316,3151.9,3151.0,1.15435]
[1738204455122,4.2538211,3152.3,3152.0,0.63454]
[1738204455123,0.6345,3152.3,3152.0,0.63454]
[1738204455325,0.63448,3152.4,3152.0,0.63454]
[1738204455519,1.0316,3152.5,3151.8,1.5632]
[1738204455726,1.0316,3152.5,3152.0,0.63454]
[1738204455923,1.0316,3152.5,3151.8,1.5632]
[1738204456120,2.8198211,3152.3,3151.8,0.5196]
[1738204456321,0.63456,3151.9,3151.8,0.5196]
[1738204457923,3.2078,3152.2,3151.4,1.028]
[1738204458127,1.17599,3151.8,3151.5,0.63464]
[1738204458322,0.5414,3151.8,3151.5,0.63464]
[1738204459132,0.5414,3151.8,3151.4,1.5454]
[1738204459521,0.5414,3151.8,3151.5,0.63463]
[1738204459723,1.17599,3151.8,3151.5,0.63463]
[1738204460429,0.5414,3151.8,3151.5,0.63463]
[1738204460630,0.5414,3151.8,3151.4,1.5454]
[1738204460833,0.5414,3151.8,3151.7,0.63461]
[1738204461326,3.2078,3152.2,3151.4,1.5454]
[1738204461534,3.2078,3152.2,3152.0,0.63453]
[1738204462220,3.2078,3152.2,3151.9,0.63455]
[1738204462424,3.2078,3152.2,3151.5,2.8198211]
[1738204462635,3.2078,3152.2,3151.9,0.63455]
[1738204462831,3.2078,3152.2,3152.0,0.5093]
[1738204463432,3.2078,3152.2,3152.0,1.044]
[1738204463632,3.2078,3152.2,3152.1,0.5244]
[1738204464127,3.84221,3152.7,3152.2,0.6345]
[1738204464331,4.34351,3152.7,3152.1,3.7322]
[1738204464532,0.63434,3153.1,3152.7,0.6344]
[1738204464926,0.5013,3153.2,3152.5,3.2078]
[1738204464927,0.63435,3153.0,3152.8,1.5687]
[1738204465237,0.5013,3153.2,3152.8,1.5687]
[1738204465436,0.5013,3153.2,3152.8,2.20308]
[1738204465630,1.13561,3153.2,3152.8,2.20308]
[1738204465939,3.3211211,3153.2,3152.8,1.5687]
[1738204466233,0.6344,3152.8,3152.6,0.00476395]
[1738204466833,0.6344,3152.7,3152.6,0.00476395]
[1738204467432,3.3211211,3153.2,3152.6,0.00476395]
[1738204467634,0.6344,3152.8,3152.6,0.00476395]
[1738204468427,0.63437,3152.9,3152.6,0.00476395]
[1738204468638,0.63434,3153.1,3152.7,0.6344]
[1738204468937,0.63436,3152.9,3152.8,1.0492]
[1738204469936,0.63435,3153.0,3152.8,1.0492]
[1738204470238,3.2078,3153.4,3152.8,3.8690211]
[1738204470438,1.0161,3153.9,3153.3,3.2078]
[1738204470637,0.6342,3153.8,3153.4,1.0492]
[1738204471033,0.6342,3153.7,3153.4,1.0492]
[1738204471335,1.0161,3153.9,3153.1,2.8198211]
[1738204471537,3.2078,3153.4,3152.9,3.7343]
[1738204471742,0.63434,3153.0,3152.9,0.5265]
[1738204472130,0.5326,3153.2,3152.5,3.3614211]
[1738204472331,0.5326,3153.2,3152.4,3.2078]
[1738204472332,0.6344,3152.7,3152.4,3.2078]
[1738204473137,1.0369,3153.2,3152.4,3.2078]
[1738204473333,0.63432,3153.1,3152.6,0.63917395]
[1738204473539,0.5326,3153.2,3152.7,0.5199]
[1738204473738,0.63437,3152.9,3152.7,0.5199]
[1738204474233,0.63438,3152.8,3152.7,0.5199]
[1738204475142,0.6344,3152.7,3152.6,0.00476395]
[1738204476138,0.63436,3153.0,3152.6,0.00476395]
[1738204476334,0.63437,3152.9,3152.6,0.63917395]
[1738204476644,0.63437,3152.9,3152.7,0.5081]
[1738204477244,0.5326,3153.2,3152.8,0.4976]
[1738204477444,0.63436,3153.0,3152.8,0.4976]
[1738204477640,3.2078,3153.8,3152.9,3.2078]
[1738204477943,1.58531,3154.1,3153.3,3.2078]
[1738204478143,0.63426,3153.4,3153.3,3.2078]
[1738204478341,3.2078,3153.9,3153.3,3.2078]
[1738204478540,3.2078,3153.9,3153.4,2.8198211]
[1738204478740,3.2078,3153.9,3153.5,0.63423]
[1738204478938,3.2078,3153.9,3153.4,4.3433211]
[1738204479138,3.84196,3153.9,3153.5,0.63423]
[1738204480044,0.6342,3153.8,3153.4,4.9775711]
[1738204481149,0.6342,3153.8,3153.5,0.63424]
[1738204481341,0.6342,3153.8,3153.4,4.9775711]
[1738204482049,3.2078,3153.9,3153.3,3.2078]
[1738204482249,0.63423,3153.6,3153.3,3.2078]
[1738204482446,3.2078,3153.9,3153.3,3.2078]
[1738204482753,0.63426,3153.4,3153.3,3.2078]
[1738204483436,1.17716,3153.4,3153.3,3.2078]
[1738204483840,2.8198211,3154.1,3153.3,3.2078]
[1738204483841,0.5211,3154.2,3153.3,8.2078]
[1738204484040,0.5457,3154.0,3153.4,0.4976]
[1738204484240,0.5457,3154.0,3153.9,3.84196]
[1738204484843,0.63404,3154.5,3153.9,3.2078]
[1738204485144,0.63407,3154.4,3154.0,3.4539411]
[1738204485348,1.0886,3154.5,3154.0,2.8198211]
[1738204485647,1.72264,3154.5,3154.0,3.4539511]
[1738204486048,0.63407,3154.4,3154.0,2.8198211]
[1738204486244,0.63408,3154.3,3154.0,2.8198211]
[1738204486443,0.63411,3154.2,3154.0,2.8198211]
[1738204487252,0.63411,3154.2,3153.9,3.2078]
[1738204487253,1.0886,3154.5,3153.9,3.2078]
[1738204487445,0.63414,3154.0,3153.9,3.2078]
[1738204487750,0.6341,3154.2,3153.9,3.2078]
[1738204487950,1.0886,3154.5,3153.9,3.2078]
[1738204488152,0.63412,3154.1,3153.9,3.2078]
[1738204488745,0.531,3154.0,3153.9,3.2078]
[1738204489842,1.16514,3154.0,3153.9,3.2078]
[1738204490555,3.84173,3155.1,3154.5,0.63403]
[1738204490748,1.58444,3155.9,3153.7,2.8198211]
[1738204490749,0.63396,3155.0,3154.8,2.8198211]
[1738204491249,0.5206,3155.4,3154.8,2.8198211]
[1738204491449,0.63396,3154.9,3154.8,2.8198211]
[1738204491653,0.63399,3154.8,3154.6,3.2078]
[1738204491956,0.634,3154.7,3154.6,3.2078]
[1738204492156,1.6298,3154.7,3154.6,3.2078]
[1738204492949,1.6298,3154.7,3154.3,1.66938]
[1738204493257,0.9958,3154.7,3154.3,1.66938]
[1738204493758,0.9958,3154.7,3154.3,1.0353]
[1738204493960,0.9958,3154.7,3154.3,1.66938]
[1738204494553,0.9958,3154.7,3154.3,1.0353]
[1738204494759,0.63394,3155.0,3154.6,0.63401]
[1738204494954,0.5261,3155.1,3154.5,2.8198211]
[1738204495154,0.63397,3154.9,3154.5,3.4538611]
[1738204495853,0.5261,3155.1,3154.5,3.4538611]
[1738204495854,0.5261,3155.1,3154.7,0.634]
[1738204496060,1.16003,3155.1,3154.6,4.37362]
[1738204496256,0.5261,3155.1,3154.6,3.7396]
[1738204496451,1.16003,3155.1,3154.6,4.3736]
[1738204496858,0.63394,3155.0,3154.6,4.3736]
[1738204497057,3.2078,3155.7,3154.8,2.8198211]
[1738204497258,2.8198211,3156.4,3155.3,2.8198211]
[1738204497259,3.2078,3156.1,3155.3,2.8198211]
[1738204497459,3.2078,3156.1,3155.1,0.5429]
[1738204497655,0.63383,3155.6,3155.1,1.70861]
[1738204498160,3.2078,3155.7,3155.1,1.0747]
[1738204498362,0.5231,3155.6,3155.3,2.8198211]
[1738204498658,0.5231,3155.6,3155.3,3.4536811]
[1738204499053,0.5231,3155.6,3155.4,0.63385]
[1738204499260,0.5231,3155.6,3155.3,3.4536911]
[1738204499659,0.5231,3155.6,3155.3,2.8198211]
[1738204500063,0.5231,3155.6,3155.3,3.4536911]
[1738204500567,0.5231,3155.6,3155.3,2.8198211]
[1738204501559,1.15693,3155.6,3155.3,2.8198211]
[1738204502057,0.5231,3155.6,3155.3,2.8198211]
[1738204502260,0.5231,3155.6,3155.3,3.4536911]
[1738204502459,0.5231,3155.6,3155.3,2.8198211]
[1738204502752,1.15692,3155.6,3155.3,2.8198211]
[1738204504370,0.5231,3155.6,3155.3,2.8198211]
[1738204505072,1.15693,3155.6,3155.3,2.8198211]
[1738204505965,0.5231,3155.6,3155.1,1.0747]
[1738204506164,0.63389,3155.3,3155.1,0.5429]
[1738204506663,0.6339,3155.2,3155.1,0.5429]
[1738204506859,3.2078,3155.2,3154.5,3.2078]
[1738204507069,1.5887,3155.1,3154.5,3.2078]
[1738204507471,0.63399,3154.8,3154.5,3.2078]
[1738204508274,1.5887,3155.1,3154.5,3.2078]
[1738204508578,0.63394,3155.0,3154.5,3.2078]
[1738204508765,0.634,3154.8,3154.5,3.2078]
[1738204509470,1.5887,3155.1,3154.5,3.2078]
[1738204509670,0.63404,3154.5,3154.4,2.8198211]
[1738204509872,0.63401,3154.7,3154.4,2.8198211]
[1738204510079,3.2078,3154.8,3154.4,2.8198211]
[1738204510266,0.63403,3154.6,3154.4,2.8198211]
[1738204510869,0.63404,3154.5,3154.4,2.8198211]
[1738204511072,0.5513,3154.5,3154.4,2.8198211]
[1738204511475,1.18534,3154.5,3154.4,2.8198211]
[1738204512374,0.63406,3154.4,3154.2,0.00475609]
[1738204512566,0.5513,3154.5,3154.2,0.00475609]
[1738204512771,0.63408,3154.3,3154.2,0.00475609]
[1738204514276,1.13488,3154.4,3154.2,0.00475609]
[1738204514476,0.63408,3154.3,3154.2,0.00475609]
[1738204515176,3.2078,3154.8,3154.2,0.00475609]
[1738204515382,0.63408,3154.3,3154.2,0.00475609]
[1738204517281,1.0589,3154.7,3154.2,0.00475609]
[1738204517684,0.63408,3154.3,3154.2,0.00475609]
[1738204519078,1.16848,3154.3,3154.2,0.00475609]
[1738204520780,0.63424,3153.6,3153.3,0.5407]
[1738204520980,1.58529,3154.2,3153.2,6.0276211]
[1738204520981,0.63428,3153.3,3153.2,3.2078]
[1738204521179,0.5339,3153.5,3153.0,0.508]
[1738204521379,0.63427,3153.4,3153.0,1.14234]
[1738204521583,0.5339,3153.5,3153.1,0.5017]
[1738204521880,0.63427,3153.4,3153.1,0.5017]
[1738204522578,0.5339,3153.5,3153.1,0.5017]
[1738204522784,1.16816,3153.5,3153.1,0.5017]
[1738204522984,0.63427,3153.4,3153.1,0.5017]
[1738204524084,1.16127,3153.4,3153.1,0.5017]
[1738204524484,0.527,3153.4,3153.1,1.13602]
[1738204524684,1.16126,3153.4,3153.1,0.5017]
[1738204526181,0.63429,3153.3,3153.1,0.5017]
[1738204526588,0.527,3153.4,3153.1,0.5017]
[1738204526784,1.16128,3153.4,3153.1,0.5017]
[1738204528685,0.527,3153.4,3153.1,0.5017]
[1738204528887,0.63429,3153.3,3153.1,0.5017]
[1738204529086,0.527,3153.4,3153.1,0.5017]
[1738204529280,1.16127,3153.4,3153.1,0.5017]
[1738204529675,0.63429,3153.3,3153.1,0.5017]
[1738204529890,1.16128,3153.4,3153.1,0.5017]
[1738204530882,1.16128,3153.4,3153.0,1.14708609]
[1738204530883,0.63428,3153.3,3153.0,0.00475609]
[1738204531186,0.63432,3153.2,3153.0,0.00475609]
[1738204531386,0.63429,3153.3,3153.0,0.00475609]
[1738204532090,0.63432,3153.2,3153.0,0.00475609]
[1738204532693,0.527,3153.4,3153.0,0.00475609]
[1738204532987,0.63429,3153.3,3153.0,0.63909609]
[1738204533287,0.63429,3153.3,3153.0,0.00475609]
[1738204533887,0.63429,3153.3,3153.0,0.63909609]
[1738204534190,0.63429,3153.3,3153.1,0.5239]
[1738204534397,2.8198211,3154.6,3153.2,6.0276211]
[1738204534690,2.8198211,3154.6,3153.6,6.0276211]
[1738204534691,0.5251,3154.1,3153.6,6.0276211]
[1738204534888,0.5251,3154.1,3153.2,3.2078]
[1738204535082,0.63428,3153.3,3153.2,0.5409]
[1738204535386,0.63432,3153.2,3153.0,0.00475609]
[1738204535590,0.63419,3153.8,3153.4,0.63425]
[1738204535790,0.63419,3153.8,3153.5,0.5243]
[1738204536291,0.63421,3153.7,3153.5,0.5243]
[1738204536680,0.63414,3154.0,3153.5,0.5243]
[1738204536892,9.1868411,3154.3,3153.5,0.5243]
[1738204537291,0.63418,3153.9,3153.5,1.15854]
[1738204537485,0.63419,3153.8,3153.5,0.5243]
[1738204538989,0.63417,3153.9,3153.5,1.15853]
[1738204539391,0.63419,3153.8,3153.5,0.5243]
[1738204539694,7.5916211,3154.3,3153.5,1.15854]
[1738204539695,0.63417,3153.9,3153.5,1.15854]
[1738204540295,7.5916211,3154.3,3153.5,1.15854]
[1738204540296,7.5916211,3154.3,3153.5,0.5243]
[1738204540495,0.63418,3153.9,3153.6,0.63422]
[1738204540704,0.63418,3153.9,3153.5,1.15854]
[1738204543592,0.63418,3153.8,3153.5,1.15854]
[1738204544097,3.2078,3154.3,3153.5,0.5243]
[1738204544297,1.15923,3154.1,3153.7,0.63419]
[1738204544498,1.15923,3154.1,3153.8,1.0462]
[1738204544887,0.5251,3154.1,3153.8,1.0462]
[1738204545095,0.5251,3154.1,3153.9,0.63415]
[1738204546098,7.6125711,3154.9,3153.8,1.0462]
[1738204546295,0.63408,3154.3,3154.0,2.8198211]
[1738204546493,0.63411,3154.2,3154.0,0.5062]
[1738204546799,0.63411,3154.2,3153.8,1.68037]
[1738204546991,0.502,3154.1,3153.8,1.68037]
[1738204547192,0.502,3154.1,3153.8,1.0462]
[1738204547389,0.502,3154.1,3153.8,0.5071]
[1738204547702,0.63418,3153.8,3153.7,3.2078]
[1738204551501,0.5118,3154.0,3153.3,3.2078]
[1738204551502,0.63426,3153.4,3153.3,3.2078]
[1738204551901,0.63426,3153.4,3152.8,2.8198211]
[1738204551902,0.63432,3153.1,3152.8,2.8198211]
[1738204552200,0.63432,3153.1,3152.7,0.5323]
[1738204552389,0.63432,3153.1,3152.6,3.2078]
[1738204556495,2.22021,3153.0,3152.2,3.46107101]
[1738204556697,0.63456,3152.0,3151.6,3.2078]
[1738204557000,3.2078,3152.6,3151.6,3.2078]
[1738204557198,1.533,3152.6,3151.8,2.8198211]
[1738204557398,0.5501,3152.5,3151.8,2.8198211]
[1738204557599,0.63446,3152.4,3152.1,3.2078]
[1738204558203,0.63449,3152.3,3152.1,3.2078]
[1738204558502,0.63448,3152.4,3152.1,3.2078]
[1738204559110,0.55485609,3152.5,3152.1,3.2078]
[1738204559512,0.63447,3152.4,3152.1,3.2078]
[1738204559712,1.15437,3152.4,3152.1,3.2078]
[1738204560615,0.5199,3152.4,3152.1,3.2078]
[1738204561112,0.6345,3152.2,3152.1,3.2078]
[1738204562407,0.5199,3152.4,3152.1,3.2078]
[1738204562614,1.15438,3152.4,3152.1,3.2078]
[1738204562811,0.5199,3152.4,3152.1,3.2078]
[1738204563014,0.6345,3152.3,3152.1,3.2078]
[1738204563514,0.6345,3152.2,3152.1,3.2078]
[1738204565213,0.63449,3152.3,3152.1,3.2078]
[1738204565613,0.6345,3152.2,3152.1,3.2078]
[1738204566506,0.63449,3152.3,3152.1,3.2078]
[1738204566706,0.00475609,3152.5,3152.1,6.0276211]
[1738204566913,0.00475609,3152.5,3152.2,0.63449]
[1738204567610,0.00475609,3152.5,3152.2,0.6345]
[1738204568211,0.00475609,3152.5,3152.2,0.63449]
[1738204568411,0.00475609,3152.5,3152.1,6.0276211]
[1738204568412,0.00475609,3152.5,3152.4,2.8198211]
[1738204568919,0.00475609,3152.5,3152.4,3.3627211]
[1738204570013,0.00475609,3152.5,3152.4,3.9971811]
[1738204570214,4.7518,3153.5,3152.4,8.3627211]
[1738204570417,4.7518,3153.5,3152.9,2.8198211]
[1738204570616,0.63432,3153.2,3153.0,0.5429]
[1738204570809,0.63432,3153.2,3153.1,0.521]
[1738204575410,3.2078,3153.5,3153.1,0.521]
[1738204575628,0.63429,3153.3,3153.1,0.521]
[1738204576613,2.5631,3153.7,3153.1,0.521]
[1738204576614,1.13842,3153.7,3153.2,6.0276211]
[1738204576822,3.84195,3154.0,3153.5,3.4540511]
[1738204577020,0.63418,3153.9,3153.6,1.084]
[1738204577326,0.63418,3153.8,3153.7,0.5185]
[1738204577823,3.2078,3154.0,3153.7,0.5185]
[1738204578016,3.2078,3154.0,3153.7,0.05542326]
[1738204578218,3.2078,3155.0,3153.8,2.8198211]
[1738204578413,0.63403,3154.6,3154.1,3.4539311]
[1738204578619,0.63403,3154.6,3154.2,0.5433]
[1738204578919,0.63404,3154.5,3154.2,0.5433]
[1738204579320,0.524,3154.9,3154.2,0.5433]
[1738204579527,0.634,3154.7,3154.3,0.512]
[1738204580217,0.524,3154.9,3154.3,0.512]
[1738204580418,0.63404,3154.5,3154.3,0.512]
[1738204580820,0.524,3154.9,3154.3,0.512]
[1738204581627,0.63402,3154.6,3154.3,0.512]
[1738204582926,0.63406,3154.5,3154.3,0.512]
[1738204583219,0.524,3154.9,3154.3,0.512]
[1738204583220,0.63401,3154.7,3154.3,0.512]
[1738204583426,0.63404,3154.5,3154.4,0.5072]
[1738204584219,0.63404,3154.6,3154.4,0.5072]
[1738204584523,0.524,3154.9,3154.4,0.5072]
[1738204584725,0.524,3154.9,3154.2,0.5433]
[1738204584726,0.63408,3154.4,3154.2,0.5433]
[1738204585520,0.63408,3154.3,3154.2,0.5433]
[1738204587028,0.5302,3154.5,3154.2,0.5433]
[1738204587223,0.63408,3154.3,3154.2,0.5433]
[1738204588031,0.5302,3154.5,3154.0,3.2078]
[1738204588327,0.63412,3154.1,3154.0,3.2078]
[1738204589130,0.5333,3154.3,3153.7,3.2078]
[1738204589323,0.6342,3153.8,3153.7,3.2078]
[1738204590027,0.63417,3153.9,3153.7,3.2078]
[1738204590425,0.63418,3153.8,3153.7,3.2078]
[1738204590929,0.63417,3153.9,3153.7,3.2078]
[1738204591130,0.63418,3153.8,3153.7,3.2078]
[1738204591524,0.5333,3154.3,3153.7,3.2078]
[1738204591728,0.63418,3153.8,3153.7,3.2078]
[1738204592521,4.4050911,3154.2,3153.4,0.00475609]
[1738204592522,0.63424,3153.5,3153.4,0.00475609]
[1738204593121,0.63416,3153.9,3153.4,0.63901609]
[1738204593522,0.63418,3153.8,3153.4,0.63901609]
[1738204593729,0.63418,3153.8,3153.4,0.00475609]
[1738204593927,0.5393,3154.0,3153.4,0.00475609]
[1738204594130,0.63424,3153.5,3153.4,0.00475609]
[1738204596435,1.17794,3153.5,3153.4,0.00330135]
[1738204596639,0.63433,3153.1,3152.7,3.8422]
[1738204596941,1.17806,3153.0,3152.7,3.2078]
[1738204597132,0.5437,3153.0,3152.7,3.2078]
[1738204597734,1.17804,3153.0,3152.7,3.2078]
[1738204598040,0.5437,3153.0,3152.7,3.2078]
[1738204598339,1.17806,3153.0,3152.7,3.2078]
[1738204598531,0.63437,3152.9,3152.7,3.2078]
[1738204598733,0.63438,3152.8,3152.7,3.2078]
[1738204599238,0.63435,3153.0,3152.8,0.63437]
[1738204599434,0.00475609,3153.2,3152.9,3.9560711]
[1738204599435,0.63433,3153.1,3152.9,3.9560711]
[1738204599740,0.63433,3153.1,3153.0,0.5124]
[1738204600641,0.63434,3153.0,3152.9,3.3217211]
[1738204602746,0.00475609,3153.2,3152.9,3.3217211]
[1738204602943,0.63433,3153.1,3152.9,3.9560711]
[1738204603752,0.63433,3153.1,3152.9,3.9560811]
[1738204604139,0.63906609,3153.2,3153.0,0.63434]
[1738204605747,0.63436,3153.0,3152.7,4.35459]
[1738204605952,0.63438,3152.9,3152.7,4.35459]
[1738204606146,0.00475609,3153.2,3152.7,4.35459]
[1738204606347,0.63435,3153.0,3152.7,4.35459]
[1738204606654,0.63437,3152.9,3152.7,4.35459]
[1738204606952,0.63433,3153.1,3152.8,0.63437]
[1738204608055,0.00475609,3153.2,3152.8,0.63437]
[1738204608353,0.63433,3153.1,3152.8,0.63437]
[1738204608654,0.63433,3153.1,3152.8,1.17247]
[1738204609750,0.00475609,3153.2,3152.8,1.17247]
[1738204609947,0.63433,3153.1,3152.8,1.17247]
[1738204610342,0.00475609,3153.2,3152.9,0.63434]
[1738204610649,0.00475609,3153.2,3153.0,0.63434]
[1738204611053,0.63905609,3153.2,3152.9,0.63435]
[1738204611650,0.00475609,3153.2,3152.8,0.5381]
[1738204611851,0.00475609,3153.2,3153.1,0.63432]
[1738204612953,0.00475609,3153.2,3152.9,0.63434]
[1738204613150,0.00475609,3153.2,3153.0,0.63434]
[1738204614650,0.00475609,3153.2,3152.8,0.5381]
[1738204614850,0.00475609,3153.2,3152.9,0.63435]
[1738204618750,0.63906609,3153.2,3152.8,1.17247]
[1738204620254,0.00475609,3153.2,3152.8,0.5381]
[1738204620557,0.63438,3152.8,3152.7,3.2078]
[1738204621056,0.63442,3152.6,3152.5,0.00475609]
[1738204621656,0.63442,3152.6,3152.5,0.00343683]
[1738204621657,1.14142,3152.6,3152.5,0.00343683]
[1738204623453,0.507,3152.6,3152.5,0.00343683]
[1738204624961,1.14142,3152.6,3152.5,0.00343683]
[1738204629668,1.14142,3152.6,3152.5,0.00248356]
[1738204630863,1.14142,3152.6,3152.5,0.00165225]
[1738204631163,2.54842,3152.6,3152.5,0.00165225]
[1738204631356,2.54842,3152.6,3152.5,0.00085225]
[1738204632156,2.54842,3152.6,3152.5,5.225e-05]
[1738204632157,2.56242,3152.6,3152.5,5.225e-05]
[1738204634254,3.84218,3152.9,3152.5,5.225e-05]
[1738204634463,0.63441,3152.7,3152.5,1.01905225]
[1738204635162,3.2078,3153.8,3152.6,6.0276211]
[1738204635367,3.2078,3153.8,3153.4,6.0276211]
[1738204635564,4.7746211,3154.5,3153.4,6.0276211]
[1738204635565,3.2078,3154.3,3153.5,1.0434]
[1738204636054,0.63416,3154.0,3153.5,1.0434]
[1738204636463,0.5438,3153.9,3153.5,1.67763]
[1738204637675,0.5438,3153.9,3153.5,1.0434]
[1738204638965,0.5438,3153.9,3153.6,0.63422]
[1738204639766,0.5438,3153.9,3153.5,1.67764]
[1738204639972,1.17797,3153.9,3153.5,1.0434]
[1738204641471,0.5438,3153.9,3153.6,0.63421]
[1738204641667,0.63883384,3154.1,3153.5,1.0434]
[1738204642769,0.63414,3154.0,3153.6,0.63422]
[1738204642967,0.00470384,3154.1,3153.6,0.63422]
[1738204643163,0.00470384,3154.1,3153.5,1.0434]
[1738204643373,0.00470384,3154.1,3153.7,2.8198211]
[1738204643673,0.00470384,3154.1,3154.0,0.63414]
[1738204643874,0.00470384,3154.1,3153.9,0.63416]
[1738204644065,0.00470384,3154.1,3153.8,0.5279]
[1738204644976,0.63415,3154.0,3153.5,1.67764]
[1738204645272,0.00470384,3154.1,3153.5,1.0434]
[1738204645468,0.63419,3153.8,3153.5,1.0434]
[1738204646271,1.0655,3153.9,3153.5,1.0434]
[1738204646577,0.6342,3153.7,3153.5,1.0434]
[1738204648377,0.63422,3153.6,3153.5,1.0434]
[1738204648580,0.63426,3153.5,3153.3,0.5312]
[1738204648769,0.63426,3153.4,3153.3,0.5312]
[1738204649677,0.63426,3153.5,3153.3,0.5312]
[1738204650975,4.2733,3153.9,3153.3,0.5312]
[1738204651179,0.63428,3153.3,3153.2,0.4995]
[1738204651481,0.63432,3153.1,3152.9,0.5317]
[1738204651678,0.6343,3153.2,3152.9,1.0588]
[1738204652881,0.6343,3153.2,3152.9,1.69315]
[1738204653480,1.378,3153.6,3153.1,0.63431]
[1738204653685,0.63428,3153.4,3153.1,0.63431]
[1738204655787,0.63428,3153.3,3153.0,3.84214]
[1738204656284,0.63428,3153.4,3153.1,0.63432]
[1738204656484,0.63428,3153.4,3153.0,3.84213]
[1738204656785,1.1534,3153.3,3153.0,3.2078]
[1738204657183,0.5191,3153.3,3153.0,3.2078]
[1738204657686,1.15339,3153.3,3153.0,3.84214]
[1738204660386,1.15339,3153.3,3153.1,0.63432]
[1738204660685,0.5191,3153.3,3153.1,0.63431]
[1738204661380,1.1534,3153.3,3153.0,3.84213]
[1738204662181,8.1595511,3153.9,3153.0,3.2078]
[1738204662381,0.63418,3153.8,3153.5,0.63424]
[1738204662589,0.63418,3153.8,3153.3,0.63427]
[1738204662788,3.7543,3153.9,3153.2,0.5039]
[1738204662983,0.63421,3153.7,3153.4,0.63426]
[1738204663188,6.5741211,3153.9,3153.2,0.5039]
[1738204663386,0.63427,3153.4,3153.2,0.5039]
[1738204663583,1.0614,3153.3,3153.0,3.84213]
[1738204663784,1.0614,3153.3,3153.0,3.2078]
[1738204663989,1.0614,3153.3,3153.1,0.63432]
[1738204665192,1.0614,3153.3,3153.0,3.2078]
[1738204665390,0.63431,3153.2,3153.0,3.2078]
[1738204665582,1.0614,3153.3,3153.2,0.6343]
[1738204665788,3.2078,3153.9,3153.1,2.8198211]
[1738204665988,4.39347,3153.9,3153.2,0.5419]
[1738204666192,3.7593,3153.9,3153.7,0.6342]
[1738204666388,3.2078,3153.9,3153.8,1.3725121]
[1738204666891,3.2078,3153.9,3153.8,0.03544439]
[1738204667687,0.5384,3154.0,3153.7,0.63419]
[1738204668894,1.17254,3154.0,3153.6,0.63421]
[1738204669289,0.5384,3154.0,3153.7,0.6342]
[1738204669800,1.17255,3154.0,3153.6,0.63421]
[1738204670000,0.63416,3153.9,3153.5,3.2078]
[1738204670202,0.63416,3153.9,3153.5,3.84203]
[1738204670387,1.17256,3154.0,3153.6,0.63421]
[1738204670595,0.63418,3153.9,3153.5,4.60384987]
[1738204673103,0.63419,3153.8,3153.5,4.60384987]
[1738204673300,0.5384,3154.0,3153.5,3.96961987]
[1738204673495,0.5384,3154.0,3153.6,1.0526]
[1738204674002,0.5384,3154.0,3153.8,0.63418]
[1738204674199,0.55620384,3154.1,3153.8,0.63417]
[1738204674500,0.55620384,3154.1,3153.9,0.63415]
[1738204675601,0.00470384,3154.1,3153.9,0.63415]
[1738204676106,0.00470384,3154.1,3153.8,0.63417]
[1738204676799,0.00470384,3154.1,3153.7,2.8198211]
[1738204677000,0.00470384,3154.1,3153.8,0.63417]
[1738204677404,0.00470384,3154.1,3153.9,0.63416]
[1738204677706,0.00470384,3154.1,3153.7,2.8198211]
[1738204677901,0.00470384,3154.1,3153.8,0.63417]
[1738204678101,0.00470384,3154.1,3153.7,2.8198211]
[1738204678807,0.00470384,3154.1,3153.9,0.63415]
[1738204679307,0.00470384,3154.1,3153.8,0.63417]
[1738204679801,0.63882384,3154.1,3153.8,0.63417]
[1738204680303,0.00470384,3154.1,3153.6,1.0526]
[1738204680604,0.63882384,3154.1,3153.7,0.63419]
[1738204680806,0.00470384,3154.1,3153.6,1.0526]
[1738204681007,0.00470384,3154.1,3153.8,0.63417]
[1738204681804,0.00470384,3154.1,3153.6,1.0526]
[1738204682000,0.63417,3153.9,3153.6,1.68681]
[1738204682209,0.00470384,3154.1,3153.5,3.96961987]
[1738204682210,0.5315,3153.8,3153.5,3.96961987]
[1738204682407,1.033,3153.8,3153.5,3.96961987]
[1738204682605,0.63421,3153.7,3153.5,3.96961987]
[1738204683005,0.63422,3153.6,3153.5,3.96961987]
[1738204683406,0.63421,3153.7,3153.5,3.96961987]
[1738204683606,0.63422,3153.6,3153.5,3.96961987]
[1738204684006,0.63422,3153.6,3153.5,3.46631987]
[1738204684209,0.63422,3153.6,3153.5,3.2078]